[Event "German Bundesliga 2022-23"]
[Site "Germany"]
[Date "2022.10.22"]
[Round "1.4"]
[White "Martinovic, Sasa"]
[Black "Meier, Georg"]
[Result "0-1"]
[ECO "E16"]
[WhiteElo "2546"]
[BlackElo "2613"]
[Annotator "TA"]
[PlyCount "100"]
[EventDate "2022.10.21"]
[EventType "team-tourn"]
[EventCountry "GER"]
[SourceTitle "playchess.com"]
[Source "ChessBase"]
[SourceQuality "1"]
[TimeControl "40/6000+30:3000+30"]

{[%evp 20,100,19,18,22,26,45,34,34,28,56,21,28,34,26,27,31,7,11,31,15,0,0,0,0,-52,-46,-47,-49,-52,-56,-71,-79,-61,-64,-67,-75,-61,-69,-63,-64,-74,-68,-72,-72,-56,-62,-81,-66,-232,-235,-252,-253,-245,-225,-284,-287,-366,-329,-447,-444,-443,-430,-613,-577,-1360,-1292,-1297,-1254,-1503,-1102,-1139,-314,-29952,-29951,-29963,-29964,-29959,-29963,-29951,-29962,-4622,-1942]} 1. d4 {[%emt 0:00:02]} e6 {[%emt 0:00:19]} 2. Nf3 {[%emt 0:00:03]} Nf6 {[%emt 0:00:30]} 3. c4 {[%emt 0:00:05]} b6 {[%emt 0:02:27]} 4. g3 {[%emt 0:00:09]} Bb7 {[%emt 0:00:16]} 5. Bg2 {[%emt 0:00:06]} Bb4+ {[%emt 0:01:23]} 6. Bd2 {[%emt 0:00:09]} c5 {[%emt 0:00:18]} 7. Bxb4 {[%emt 0:01:00]} cxb4 {[%emt 0:00:07]} 8. O-O {[%emt 0:00:53]} O-O {[%emt 0:00:50]} 9. Qb3 {[%emt 0:01:03]} a5 {[%emt 0:02:57]} 10. a3 {[%emt 0:00:34]} Na6 {[%emt 0:02:47]} 11. Nbd2 {[%emt 0:00:23]} Rc8 $5 {[%emt 0:04:42][%mdl 4] [#] An interesting side line. E16: Queen's Indian: 4 g3 Bb7 5 Bg2 Bb4+.} 12. Rfc1 $146 {[%emt 0:06:39]} ({Predecessor:} 12. Rac1 d6 13. Rfd1 Qe8 14. Qe3 Qa4 15. d5 exd5 16. Qxb6 Nc5 17. axb4 Qxb4 18. Qxb4 axb4 19. Nd4 {½-½ (19) Schussler,H (2335)-Nikolic,P (2330) Thessaloniki 1988}) 12... Rc7 {[%emt 0:03:49]} 13. Ne1 {[%emt 0:04:47]} Bxg2 {[%emt 0:09:10] White is slightly better.} 14. Kxg2 {[%emt 0:00:53]} Qa8+ {[%emt 0:00:19]} 15. Qf3 {[%emt 0:06:12]} d5 {[%emt 0:32:14]} 16. cxd5 {[%emt 0:01:26]} bxa3 {[%emt 0:00:23]} 17. bxa3 {[%emt 0:02:28] Strongly threatening d6.} Qxd5 {[%emt 0:04:57]} 18. Qxd5 {[%emt 0:05:35]} Nxd5 {[%emt 0:00:18]} 19. Rxc7 {[%emt 0:04:03]} Naxc7 {[%emt 0:02:43][%cal Ba6c7,Bc7b5,Bb5c3,Bc3d1][%mdl 32]} 20. e3 {[%emt 0:23:41]} Nb5 {[%emt 0:02:16]} 21. a4 {[%emt 0:04:08]} Nbc3 {[%emt 0:10:08]} 22. Ra3 {[%emt 0:03:05]} (22. h4 $11) 22... Rc8 $1 $15 {[%emt 0:01:14]} 23. Nd3 {[%emt 0:01:28]} Nd1 {[%emt 0:09:26]} 24. Kf1 {[%emt 0:22:00]} Rc2 {[%emt 0:03:06]} 25. Nf3 {[%emt 0:06:40]} N1c3 {[%emt 0:03:19] Black is much more active.} 26. Nfe1 {[%emt 0:04:09]} Rd2 {[%emt 0:08:25]} 27. Nf4 {[%emt 0:00:13]} Ne4 {[%emt 0:00:36]} 28. Ned3 {[%emt 0:00:42]} Nxf4 {[%emt 0:01:17]} 29. gxf4 {[%emt 0:00:21][%mdl 4096] Endgame KRN-KRN} Rc2 $1 {[%emt 0:00:32]} 30. Ke1 {[%emt 0:02:29]} Nc3 {[%emt 0:01:12]} 31. Nb2 {[%emt 0:06:15]} Kf8 {[%emt 0:03:09]} 32. Rb3 {[%emt 0:00:19]} Nd5 {[%emt 0:00:36]} 33. Nd3 {[%emt 0:02:00]} Ke7 {[%emt 0:00:07]} 34. e4 $2 {[%emt 0:02:48] [#] This costs White the game.} ({White should try} 34. h4 $15) 34... Rc3 $1 $19 {[%emt 0:00:28]} 35. Rb2 {[%emt 0:00:26] aiming for Kd2.} Rxd3 {[%emt 0:00:49]} 36. exd5 {[%emt 0:00:01]} Rxd4 {[%emt 0:00:36]} (36... exd5 $2 37. Rxb6 Rxd4 38. Rb7+ Kf6 39. Rb6+ Kf5 40. Rb5) 37. dxe6 {[%emt 0:00:03]} fxe6 {[%emt 0:00:39]} ({Don't blunder} 37... Rxa4 $2 38. Rxb6 fxe6 39. Rb5 $19) 38. Rxb6 {[%emt 0:00:04]} Rxf4 {[%emt 0:00:08] KR-KR} ({Avoid the trap} 38... Rxa4 $2 39. Rb5 $19) 39. Ra6 {[%emt 0:00:57]} Rxa4 {[%emt 0:00:03]} 40. Ra7+ {[%emt 0:00:15]} Kf6 {[%emt 0:00:02]} 41. Kf1 {[%emt 0:50:04]} (41. Ra8 $142) 41... Ra1+ {[%emt 0:51:22]} 42. Kg2 {[%emt 0:00:03]} a4 {[%emt 0:00:29][%cal Ba5a4,Ba4a3,Ba3a2][%mdl 32]} 43. Ra5 {[%emt 0:00:27]} g5 {[%emt 0:00:46]} 44. h4 {[%emt 0:00:00]} h6 {[%emt 0:00:00][%cal Bh7h6,Bh6g5,Bg5g4][%mdl 32]} 45. hxg5+ {[%emt 0:00:00]} hxg5 {[%emt 0:00:00]} 46. Kf3 $2 {[%emt 0:00:00] [#]} (46. Kg3 $19) 46... a3 {[%emt 0:00:00]} 47. Kg4 {[%emt 0:00:00]} a2 {[%emt 0:00:00]} 48. Kf3 {[%emt 0:00:00]} g4+ {[%emt 0:00:00]} 49. Kg2 {[%emt 0:00:00]} e5 {[%emt 0:00:00][%cal Be6e5,Be5e4][%mdl 32]} 50. Ra8 {[%emt 0:00:00]} e4 {[%emt 0:00:00] Weighted Error Value: White=0.60/Black=0.13 (very precise)} 0-1

[Event "German Bundesliga 2022-23"]
[Site "Germany"]
[Date "2022.10.23"]
[Round "1.4"]
[White "Heinemann, Thies"]
[Black "Richter, Nils"]
[Result "1-0"]
[ECO "B40"]
[WhiteElo "2484"]
[BlackElo "2395"]
[Annotator "ChessBase"]
[PlyCount "57"]
[EventDate "2022.10.21"]
[EventType "team-tourn"]
[EventCountry "GER"]
[SourceTitle "playchess.com"]
[Source "ChessBase"]
[SourceQuality "1"]
[TimeControl "40/6000+30:3000+30"]

1. e4 c5 2. Nf3 e6 3. g3 Nc6 4. Bg2 Nf6 5. Qe2 e5 6. O-O Be7 7. c3 O-O 8. Rd1 d6 9. d4 cxd4 10. cxd4 exd4 11. Nxd4 Nxd4 12. Rxd4 Qb6 13. Rd1 Be6 14. Nc3 Rac8 15. Be3 Qa5 16. Qb5 Qxb5 17. Nxb5 Rc2 18. b3 a6 {[%emt 0:09:00]} 19. Nd4 {[%emt 0:09:30]} Rc7 {[%emt 0:00:30]} 20. Rac1 {[%emt 0:00:30]} Rxc1 {[%emt 0:00:30]} 21. Rxc1 {[%emt 0:00:30]} Ng4 {[%emt 0:00:30]} 22. Nxe6 {[%emt 0:00:30]} fxe6 {[%emt 0:00:30]} 23. Bb6 {[%emt 0:00:30]} Bg5 {[%emt 0:00:30]} 24. Rc7 {[%emt 0:00:30]} Rf7 {[%emt 0:00:30]} 25. h4 {[%emt 0:00:30]} Bd2 {[%emt 0:00:30]} 26. Rc2 {[%emt 0:00:30]} Bb4 {[%emt 0:00:30]} 27. Rc4 {[%emt 0:00:30]} Be1 {[%emt 0:00:30]} 28. Kf1 {[%emt 0:00:30]} Bd2 {[%emt 0:00:30]} 29. Ke2 {[%emt 0:00:30]} 1-0

[Event "German Bundesliga 2022-23"]
[Site "Germany"]
[Date "2022.10.22"]
[Round "1.5"]
[White "Fedorchuk, Sergey A."]
[Black "Prusikin, Michael"]
[Result "1/2-1/2"]
[ECO "C07"]
[WhiteElo "2619"]
[BlackElo "2517"]
[Annotator "TA"]
[PlyCount "145"]
[EventDate "2022.10.21"]
[EventType "team-tourn"]
[EventCountry "GER"]
[SourceTitle "playchess.com"]
[Source "ChessBase"]
[SourceQuality "1"]
[TimeControl "40/6000+30:3000+30"]

{[%evp 14,145,18,20,13,15,10,12,18,12,32,32,21,0,0,0,0,-31,-4,-6,0,0,0,0,0,0,9,12,13,6,21,0,20,24,17,16,20,0,27,25,33,20,41,19,22,0,0,0,0,0,0,0,0,0,0,0,0,0,0,0,0,0,0,0,0,0,0,0,0,0,0,0,0,0,0,0,0,0,0,0,0,0,0,0,0,0,0,0,0,0,0,0,0,0,0,0,0,0,0,0,0,0,0,0,0,0,0,0,0,0,0,0,0,0,0,0,0,0,0,0,0,0,0,0,0,0,0,0,0,0,0,0,0,0]} 1. e4 {[%emt 0:00:02]} e6 {[%emt 0:00:04]} 2. d4 {[%emt 0:00:23]} d5 {[%emt 0:00:04]} 3. Nd2 {[%emt 0:02:34]} c5 {[%emt 0:00:20]} 4. Ngf3 {[%emt 0:00:26]} cxd4 {[%emt 0:00:11]} 5. Nxd4 {[%emt 0:00:08]} Nc6 {[%emt 0:00:06]} 6. Bb5 {[%emt 0:01:08]} Bd7 {[%emt 0:00:22]} 7. Nxc6 {[%emt 0:00:19]} bxc6 {[%emt 0:00:05]} 8. Bd3 {[%emt 0:00:11]} Bd6 {[%emt 0:00:38] C07: French Tarrasch: 3...c5, 4 Ngf3 and 4 exd5 Qxd5.} 9. Qe2 {[%emt 0:01:56]} Qc7 {[%emt 0:00:12] 9...e5 gains popularity.} 10. Nf3 {[%emt 0:12:18]} dxe4 {[%emt 0:00:19]} 11. Qxe4 {[%emt 0:00:45]} Nf6 {[%emt 0:00:05]} 12. Qh4 {[%emt 0:06:36][%cal Oc1h6]} h6 {[%emt 0:00:20] [#]} 13. a3 $146 {[%emt 0:15:54]} ({Predecessor:} 13. O-O c5 14. Nd2 Nd5 15. Nc4 Bf4 16. g3 Bxc1 17. Raxc1 Bc6 18. Rfe1 O-O 19. Qe4 {½-½ (31) Ragger,M (2684)-Andreikin,D (2741) Batumi 2019}) 13... c5 {[%emt 0:03:56]} 14. Nd2 {[%emt 0:01:17]} Bf4 {[%emt 0:04:45]} 15. Ne4 {[%emt 0:28:16]} Be5 {[%emt 0:06:56]} 16. Nd2 {[%emt 0:08:19]} Bf4 {[%emt 0:08:28]} 17. Nc4 {[%emt 0:00:11] Prevents Qe5+.} Bxc1 {[%emt 0:00:32]} 18. Rxc1 {[%emt 0:00:06]} O-O {[%emt 0:00:49]} 19. Qg3 {[%emt 0:01:26]} Qxg3 {[%emt 0:01:20]} 20. hxg3 {[%emt 0:00:03]} Rfd8 {[%emt 0:11:27]} 21. Rd1 {[%emt 0:02:25]} Rab8 {[%emt 0:02:09]} 22. Rh4 {[%emt 0:04:10]} Kf8 {[%emt 0:01:59]} 23. Kd2 {[%emt 0:04:31]} Bc6 {[%emt 0:07:46]} 24. f3 {[%emt 0:01:36]} h5 {[%emt 0:00:30]} 25. Kc1 {[%emt 0:01:42]} g5 {[%emt 0:01:26]} 26. Rhh1 {[%emt 0:00:30]} Ke7 {[%emt 0:00:45]} 27. Rde1 {[%emt 0:01:09]} Bd5 {[%emt 0:09:06]} 28. Ne3 {[%emt 0:03:17]} Rbc8 {[%emt 0:09:03] The position is equal.} 29. Nxd5+ {[%emt 0:04:50]} Rxd5 {[%emt 0:00:04]} 30. Bc4 $1 {[%emt 0:00:07]} Rd4 {[%emt 0:06:36]} 31. b3 {[%emt 0:00:05]} Rg8 {[%emt 0:00:21]} 32. Re5 {[%emt 0:00:33]} Nd7 {[%emt 0:00:24]} 33. Re3 {[%emt 0:00:21]} Nb6 {[%emt 0:01:48]} 34. Rxh5 {[%emt 0:05:25]} Nxc4 {[%emt 0:00:14]} 35. bxc4 {[%emt 0:00:03]} Rxc4 $11 {[%emt 0:02:09][%mdl 4096] Endgame KRR-KRR} 36. g4 {[%emt 0:00:04]} Rd4 {[%emt 0:03:19]} 37. Rb3 {[%emt 0:01:09]} Rd7 {[%emt 0:00:53]} 38. Rb5 {[%emt 0:00:16]} Kd6 {[%emt 0:00:32]} 39. Kb2 {[%emt 0:03:54]} Kc6 {[%emt 0:00:27]} 40. Rb3 {[%emt 0:00:32]} Rd2 {[%emt 0:03:46]} 41. Rh7 {[%emt 0:50:11]} Rf8 {[%emt 0:50:35]} (41... Rxg2 42. Rxf7 Rg3 43. a4 $16 (43. Rxa7 Rf8 $16)) 42. g3 {[%emt 0:00:00]} Rg2 {[%emt 0:00:00]} 43. Rg7 {[%emt 0:00:00]} Rxg3 {[%emt 0:00:00]} 44. Rxg5 {[%emt 0:00:00]} f5 {[%emt 0:00:00]} 45. Re3 {[%emt 0:00:00]} Rf6 {[%emt 0:00:00]} 46. Rc3 {[%emt 0:00:00]} Kd6 {[%emt 0:00:00]} 47. Rd3+ {[%emt 0:00:00]} Kc6 {[%emt 0:00:00]} 48. Rg8 {[%emt 0:00:00]} fxg4 {[%emt 0:00:00]} 49. fxg4 {[%emt 0:00:00]} Rxd3 {[%emt 0:00:00]} 50. cxd3 {[%emt 0:00:00] KR-KR} Rf3 {[%emt 0:00:00]} 51. Kc3 {[%emt 0:00:00]} Kd5 {[%emt 0:00:00]} 52. g5 {[%emt 0:00:00]} Rg3 {[%emt 0:00:00]} 53. g6 {[%emt 0:00:00]} Rg4 {[%emt 0:00:00]} 54. a4 {[%emt 0:00:00]} Kc6 {[%emt 0:15:52]} 55. g7 {[%emt 0:00:00] [#] Threatens to win with Rc8+.} Kb7 {[%emt 0:00:08] Against Rc8} 56. Kd2 {[%emt 0:00:00]} Ka6 {[%emt 0:02:07]} 57. Ke3 {[%emt 0:00:00]} Ka5 {[%emt 0:00:34]} 58. Kf3 {[%emt 0:00:00]} Rg1 {[%emt 0:01:30]} 59. Kf4 {[%emt 0:00:00]} Kxa4 {[%emt 0:00:48]} 60. Ke5 {[%emt 0:00:00]} Rg3 {[%emt 0:00:27]} 61. Kf6 {[%emt 0:00:00]} ({Resist} 61. Kxe6 $6 a5 $16) 61... Rf3+ $1 {[%emt 0:00:01]} 62. Kxe6 {[%emt 0:00:00]} Rg3 {[%emt 0:00:05]} 63. Kf6 {[%emt 0:00:00]} Rf3+ {[%emt 0:00:05]} 64. Ke5 {[%emt 0:00:00]} Rg3 {[%emt 0:00:21]} 65. Kf4 {[%emt 0:00:57]} Rg1 {[%emt 0:00:23]} 66. Ke3 {[%emt 0:00:14]} Ka5 {[%emt 0:01:01]} 67. Ke4 {[%emt 0:06:04]} Rg3 {[%emt 0:00:06]} 68. Ke5 {[%emt 0:00:05]} Ka6 {[%emt 0:00:31]} 69. Ke6 {[%emt 0:01:16]} Kb7 {[%emt 0:00:24]} 70. Kf6 {[%emt 0:02:16]} Rf3+ $1 {[%emt 0:00:07]} 71. Ke5 {[%emt 0:00:27]} Rg3 {[%emt 0:00:07]} 72. Kf6 {[%emt 0:00:04]} Rf3+ $1 {[%emt 0:00:04]} 73. Ke5 {[%emt 0:00:05] Weighted Error Value: White=0.04 (flawless) /Black=0.03 (flawless)} 1/2-1/2

[Event "German Bundesliga 2022-23"]
[Site "Germany"]
[Date "2022.10.22"]
[Round "1.5"]
[White "Seyb, Alexander"]
[Black "Dragnev, Valentin"]
[Result "1/2-1/2"]
[ECO "C83"]
[WhiteElo "2441"]
[BlackElo "2544"]
[Annotator "TA"]
[PlyCount "53"]
[EventDate "2022.10.21"]
[EventType "team-tourn"]
[EventCountry "GER"]
[SourceTitle "playchess.com"]
[Source "ChessBase"]
[SourceQuality "1"]
[TimeControl "40/6000+30:3000+30"]

{[%evp 21,41,32,27,28,27,20,22,27,26,34,27,29,33,11,20,29,21,22,38,32,36,8]} 1. e4 {[%emt 0:00:03]} e5 {[%emt 0:00:13]} 2. Nf3 {[%emt 0:00:05]} Nc6 {[%emt 0:00:11]} 3. Bb5 {[%emt 0:00:05]} a6 {[%emt 0:00:11]} 4. Ba4 {[%emt 0:00:04]} Nf6 {[%emt 0:00:07]} 5. O-O {[%emt 0:00:06]} Nxe4 {[%emt 0:02:01]} 6. d4 {[%emt 0:00:05]} b5 {[%emt 0:00:07]} 7. Bb3 {[%emt 0:00:04]} d5 {[%emt 0:00:06][%cal Bd7d5,Bd5d4,Bd4d3,Bd3c2][%mdl 32]} 8. dxe5 {[%emt 0:00:06]} Be6 {[%emt 0:00:08]} 9. Nbd2 {[%emt 0:04:00][%cal Bb1d2,Bd2b3,Bb3c5][%mdl 32]} Nc5 {[%emt 0:00:31]} 10. c3 {[%emt 0:01:12]} Be7 {[%emt 0:00:13]} 11. Bc2 {[%emt 0:04:49]} d4 {[%emt 0:00:11]} 12. Nb3 {[%emt 0:00:29][%cal Rb3d4] C83: Open Ruy Lopez: 9 c3 Be7.} d3 {[%emt 0:00:18]} 13. Nxc5 {[%emt 0:00:20]} (13. Bb1 {is interesting.} Nxb3 14. axb3 Bf5 15. Be3) 13... dxc2 {[%emt 0:00:14]} 14. Qxd8+ {[%emt 0:00:08] The position is equal.} Rxd8 {[%emt 0:00:05]} ({Don't take} 14... Bxd8 15. Nxe6 fxe6 16. Be3 $16) 15. Nxe6 {[%emt 0:00:07]} fxe6 {[%emt 0:00:06]} 16. Be3 {[%emt 0:00:19]} Rd5 {[%emt 0:00:22]} 17. Rfc1 {[%emt 0:00:26]} Nxe5 {[%emt 0:00:47]} 18. Nxe5 {[%emt 0:00:05]} Rxe5 {[%emt 0:00:07]} 19. Rxc2 {[%emt 0:00:11] 19.Bd4 is vanishing.} Rd5 {[%emt 0:01:33]} 20. c4 {[%emt 0:03:39]} Rd7 {[%emt 0:00:24]} 21. Kf1 {[%emt 0:02:28] [#]  Weighted Error Value: White=0.05 (flawless) /Black=0.02 (flawless)} {Predecessor:} Kf7 $146 22. Ke2 Rhd8 23. cxb5 axb5 24. a4 bxa4 25. Rxa4 Rb8 26. Rac4 Rb7 27. g3 {½-½ (27) Azarov,S (2577)-Melkumyan,H (2653) Bad Wiessee 2016} 1/2-1/2

[Event "German Bundesliga 2022-23"]
[Site "Germany"]
[Date "2022.10.23"]
[Round "1.5"]
[White "Vyval, Volodymyr"]
[Black "Kramer, Julian"]
[Result "1-0"]
[ECO "B80"]
[WhiteElo "2282"]
[BlackElo "2467"]
[Annotator "ChessBase"]
[PlyCount "77"]
[EventDate "2022.10.21"]
[EventType "team-tourn"]
[EventCountry "GER"]
[SourceTitle "playchess.com"]
[Source "ChessBase"]
[SourceQuality "1"]
[TimeControl "40/6000+30:3000+30"]

1. e4 c5 2. Nf3 d6 3. d4 cxd4 4. Nxd4 Nf6 5. Nc3 Nc6 6. g3 e6 7. Bg2 Nxd4 8. Qxd4 Bd7 9. O-O Be7 10. Rd1 Qc7 11. Qd3 h6 12. Nb5 Bxb5 13. Qxb5+ Nd7 14. Bf4 a6 15. Qd3 Ne5 16. Bxe5 dxe5 17. c3 Bc5 18. Rd2 Ke7 19. Rad1 Rad8 20. Qc2 Rxd2 21. Rxd2 g5 22. Qd1 h5 23. h3 Qc6 24. Bf3 {[%emt 0:12:00]} h4 {[%emt 0:12:00]} 25. Kg2 {[%emt 0:00:30]} hxg3 {[%emt 0:00:30]} 26. fxg3 {[%emt 0:00:30]} Bb6 {[%emt 0:00:30]} 27. Kh2 {[%emt 0:00:30]} Rh6 {[%emt 0:00:30]} 28. Qe2 {[%emt 0:00:30]} Rf6 {[%emt 0:00:30]} 29. Kg2 {[%emt 0:00:30]} Kf8 {[%emt 0:00:30]} 30. Rd1 {[%emt 0:00:30]} Qc5 {[%emt 0:00:30]} 31. Qd2 {[%emt 0:00:30]} Ba7 {[%emt 0:00:30]} 32. b4 {[%emt 0:00:30]} Qb6 {[%emt 0:00:30]} 33. a4 {[%emt 0:00:30]} Qc7 {[%emt 0:00:30]} 34. Qxg5 {[%emt 0:00:30]} Ke7 {[%emt 0:00:30]} 35. Rf1 {[%emt 0:00:30]} Qb8 {[%emt 0:00:30]} 36. h4 {[%emt 0:00:30]} Qh8 {[%emt 0:00:30]} 37. Qxe5 {[%emt 0:00:30]} Bb8 {[%emt 0:00:30]} 38. Qd4 {[%emt 0:00:30]} Qg8 {[%emt 0:00:30]} 39. e5 {[%emt 0:00:30]} 1-0

[Event "German Bundesliga 2022-23"]
[Site "Germany"]
[Date "2022.10.22"]
[Round "1.6"]
[White "Kurmann, Oliver"]
[Black "Hess, Max"]
[Result "1/2-1/2"]
[ECO "B12"]
[WhiteElo "2452"]
[BlackElo "2361"]
[Annotator "RC"]
[PlyCount "44"]
[EventDate "2022.10.21"]
[EventType "team-tourn"]
[EventCountry "GER"]
[SourceTitle "playchess.com"]
[Source "ChessBase"]
[SourceQuality "1"]
[TimeControl "40/6000+30:3000+30"]

1. e4 {[%emt 0:00:03]} c6 {[%emt 0:00:05]} 2. d4 {[%emt 0:00:08]} d5 {[%emt 0:00:04]} 3. e5 {[%emt 0:00:08]} Bf5 {[%emt 0:00:17]} 4. h4 {[%emt 0:00:22]} Qc7 {[%emt 0:01:07]} 5. h5 {[%emt 0:01:57]} c5 {[%emt 0:03:19]} 6. dxc5 {[%emt 0:09:10]} Qxe5+ {[%emt 0:05:11]} 7. Be2 {[%emt 0:04:46]} Nf6 {[%emt 0:13:58]} 8. Nc3 {[%emt 0:07:51]} Bd7 {[%emt 0:24:08]} 9. Nf3 {[%emt 0:01:52]} Qc7 {[%emt 0:00:10]} 10. Nxd5 {[%emt 0:01:44]} Nxd5 {[%emt 0:00:34]} 11. Qxd5 {[%emt 0:00:03]} e6 {[%emt 0:02:53]} 12. Qe5 {[%emt 0:08:32]} Qxe5 {[%emt 0:06:14]} 13. Nxe5 {[%emt 0:00:03]} Bxc5 {[%emt 0:00:09]} 14. Bf3 {[%emt 0:07:52]} Bc6 {[%emt 0:01:33]} 15. Nxc6 {[%emt 0:01:09]} Nxc6 {[%emt 0:00:43]} 16. Bxc6+ {[%emt 0:00:10]} bxc6 {[%emt 0:00:04]} 17. Rh4 {[%emt 0:00:11]} O-O-O {[%emt 0:12:36]} 18. Be3 {[%emt 0:36:32]} Bxe3 {[%emt 0:01:10]} 19. fxe3 {[%emt 0:00:01]} Rd5 {[%emt 0:02:05]} 20. Rd1 {[%emt 0:00:02]} Kc7 {[%emt 0:10:21]} 21. Rf4 {[%emt 0:05:00]} f5 {[%emt 0:05:04]} 22. Ra4 {[%emt 0:05:13]} Kb6 {[%emt 0:02:04]} 1/2-1/2

[Event "German Bundesliga 2022-23"]
[Site "Germany"]
[Date "2022.10.23"]
[Round "1.6"]
[White "Sebastian, Dirk"]
[Black "Plenca, Jadranko"]
[Result "1/2-1/2"]
[ECO "C54"]
[WhiteElo "2435"]
[BlackElo "2412"]
[Annotator "ChessBase"]
[PlyCount "63"]
[EventDate "2022.10.21"]
[EventType "team-tourn"]
[EventCountry "GER"]
[SourceTitle "playchess.com"]
[Source "ChessBase"]
[SourceQuality "1"]
[TimeControl "40/6000+30:3000+30"]

1. e4 e5 2. Nf3 Nc6 3. Bc4 Bc5 4. O-O Nf6 5. d3 O-O 6. Re1 h6 7. h3 d6 8. c3 a6 9. a4 Re8 10. Nbd2 Be6 11. Bxe6 Rxe6 12. b4 Ba7 13. Nf1 d5 14. Qc2 b5 15. Ng3 Qe8 16. Nf5 Rd8 17. Bd2 Bb6 {[%emt 0:08:30]} 18. c4 {[%emt 0:09:00]} dxc4 {[%emt 0:00:30]} 19. dxc4 {[%emt 0:00:30]} Nd4 {[%emt 0:00:30]} 20. N3xd4 {[%emt 0:00:30]} Bxd4 {[%emt 0:00:30]} 21. Ra2 {[%emt 0:00:30]} bxa4 {[%emt 0:00:30]} 22. Re2 {[%emt 0:00:30]} c5 {[%emt 0:00:30]} 23. Qxa4 {[%emt 0:00:30]} Qxa4 {[%emt 0:00:30]} 24. Rxa4 {[%emt 0:00:30]} Rb8 {[%emt 0:00:30]} 25. bxc5 {[%emt 0:00:30]} Rb1+ {[%emt 0:00:30]} 26. Kh2 {[%emt 0:00:30]} Rb2 {[%emt 0:00:30]} 27. c6 {[%emt 0:00:30]} Ne8 {[%emt 0:00:30]} 28. Rxa6 {[%emt 0:00:30]} Kh7 {[%emt 0:00:30]} 29. Ra8 {[%emt 0:00:30]} Nc7 {[%emt 0:00:30]} 30. Rd8 {[%emt 0:00:30]} Rxc6 {[%emt 0:00:30]} 31. Nxd4 {[%emt 0:00:30]} exd4 {[%emt 0:00:30]} 32. Rxd4 {[%emt 0:00:30]} 1/2-1/2

[Event "German Bundesliga 2022-23"]
[Site "Germany"]
[Date "2022.10.22"]
[Round "1.6"]
[White "Costa, Leonardo"]
[Black "Braun, Arik"]
[Result "0-1"]
[ECO "B82"]
[WhiteElo "2350"]
[BlackElo "2597"]
[Annotator "TA"]
[PlyCount "50"]
[EventDate "2022.10.21"]
[EventType "team-tourn"]
[EventCountry "GER"]
[SourceTitle "playchess.com"]
[Source "ChessBase"]
[SourceQuality "1"]
[TimeControl "40/6000+30:3000+30"]

{[%evp 14,50,10,20,20,15,47,39,49,34,55,-34,-29,-33,-28,-97,-34,-16,-22,-122,-133,-233,-229,-229,-219,-193,-206,-284,-278,-495,-508,-435,-141,-327,-304,-744,-744,-925,-921]} 1. e4 {[%emt 0:00:01]} c5 {[%emt 0:00:04]} 2. Nf3 {[%emt 0:00:04]} e6 {[%emt 0:00:06]} 3. d4 {[%emt 0:00:03]} cxd4 {[%emt 0:00:05]} 4. Nxd4 {[%emt 0:00:04]} a6 {[%emt 0:00:07]} 5. Nc3 {[%emt 0:00:05]} Qc7 {[%emt 0:00:44]} 6. Bd3 {[%emt 0:00:05]} Nf6 {[%emt 0:01:48]} 7. Qe2 {[%emt 0:00:19]} d6 {[%emt 0:02:02]} 8. f4 {[%emt 0:00:06]} Be7 {[%emt 0:04:48] B82: Sicilian Scheveningen: 6 f4.} 9. g4 {[%emt 0:15:49]} b5 {[%emt 0:11:48]} 10. g5 {[%emt 0:05:18]} Nfd7 {[%emt 0:01:09] White is slightly better.} 11. a3 {[%emt 0:00:19] [#]} Bb7 $146 {[%emt 0:02:42]} ({Predecessor:} 11... Nc6 12. Be3 Bb7 13. f5 Nxd4 14. Bxd4 e5 15. Be3 Nb6 16. O-O-O Rc8 17. f6 Bf8 {1-0 (44) Pares Vives,N (2299)-Steinbacher,C (2203) Dresden 2008}) 12. O-O {[%emt 0:11:37]} ({White should play} 12. Rf1 $14) 12... Nc6 $15 {[%emt 0:13:07]} 13. Nxc6 {[%emt 0:01:00]} Qxc6 {[%emt 0:02:53]} 14. Bd2 {[%emt 0:02:49]} (14. Be3 $11) 14... g6 {[%emt 0:03:12]} (14... h6 $17) 15. Rae1 {[%emt 0:04:34]} h6 {[%emt 0:03:25]} 16. gxh6 {[%emt 0:17:08]} (16. Nd5 $1 $11) 16... f5 {[%emt 0:21:00]} ({Weaker is} 16... Rxh6 17. f5 g5 18. fxe6 fxe6 19. Rf2 $15) 17. Na2 {[%emt 0:20:30]} (17. Nd5 $17 Rxh6 18. Nxe7 Kxe7 19. Bc3) 17... Rxh6 $19 {[%emt 0:02:45]} 18. Nb4 {[%emt 0:01:02]} Qc5+ {[%emt 0:03:14]} 19. Be3 {[%emt 0:00:16]} Qc7 {[%emt 0:00:27]} 20. Bd4 {[%emt 0:01:13][%cal Ob4d5]} Nc5 {[%emt 0:03:56]} 21. e5 $2 {[%emt 0:06:42] [#]} (21. Rf2) 21... Kf7 {[%emt 0:01:53]} 22. Rf2 {[%emt 0:02:20]} Ne4 {[%emt 0:03:45]} (22... a5 $19 {and Black stays clearly on top.} 23. exd6 Bxd6 24. Bxc5 Bxc5 25. Qxe6+ Kf8) 23. Rg2 $2 {[%emt 0:01:19]} (23. exd6 $17 {might work better.} Qxd6 24. Bxe4 Bxe4 25. Rd1) 23... dxe5 {[%emt 0:01:07]} 24. fxe5 {[%emt 0:01:21]} (24. Bxe4 Bxe4 25. Bxe5) 24... Ng5 {[%emt 0:01:25]} 25. Rf1 {[%emt 0:00:48]} Rah8 {[%emt 0:02:36] Weighted Error Value: White=0.87/Black=0.38} 0-1